[Event "Portuguese-ch U14-20 2022"]
[Site "Fatima"]
[Date "2022.04.13"]
[Round "6.8"]
[White "Paiva, Manuel Maria Fonseca"]
[Black "Quinta, Diogo Manuel Rodrigu"]
[Result "1-0"]
[ECO "C45"]
[WhiteElo "1370"]
[BlackElo "1127"]
[Annotator "NA RC"]
[PlyCount "47"]
[EventDate "2022.04.10"]
[EventType "swiss"]
[EventCountry "POR"]
[SourceTitle "playchess.com"]
[Source "ChessBase"]
[SourceQuality "1"]
[TimeControl "5400+30"]

1. e4 {[%emt 0:00:02]} e5 {[%emt 0:00:49]} 2. Nf3 {[%emt 0:00:06]} Nc6 {[%emt 0:00:52]} 3. d4 {[%emt 0:00:03]} exd4 {[%emt 0:03:27]} 4. Nxd4 {[%emt 0:00:02]} Bc5 {[%emt 0:02:57]} 5. Nb3 {[%emt 0:00:02]} Bb6 {[%emt 0:01:31]} 6. Nc3 {[%emt 0:00:40]} Qf6 {[%emt 0:01:02]} 7. Qe2 {[%emt 0:00:46]} d6 {[%emt 0:01:59]} 8. h4 {[%emt 0:02:09]} Be6 {[%emt 0:04:23]} 9. Bg5 {[%emt 0:00:39]} Qg6 {[%emt 0:02:11]} 10. f4 {[%emt 0:01:10]} f5 {[%emt 0:01:19]} 11. g4 {[%emt 0:05:15]} fxe4 {[%emt 0:03:36]} 12. f5 {[%emt 0:00:45]} Bxf5 {[%emt 0:01:17]} 13. gxf5 {[%emt 0:01:15]} Qxf5 {[%emt 0:01:50]} 14. Nxe4 {[%emt 0:01:03]} Nge7 {[%emt 0:01:00]} 15. O-O-O {[%emt 0:01:30]} O-O-O {[%emt 0:01:16]} 16. Bh3 {[%emt 0:01:30]} Qxh3 {[%emt 0:01:24]} 17. Rxh3 {[%emt 0:00:36]} h6 {[%emt 0:02:13]} 18. Bxe7 {[%emt 0:01:35]} Nxe7 {[%emt 0:00:37]} 19. Nxd6+ {[%emt 0:00:05]} cxd6 {[%emt 0:02:16]} 20. Qxe7 {[%emt 0:00:01]} Rd7 {[%emt 0:01:08]} 21. Qe6 {[%emt 0:00:13]} Kc7 {[%emt 0:00:37]} 22. Rc3+ {[%emt 0:00:11]} Kd8 {[%emt 0:01:42]} 23. Rxd6 {[%emt 0:00:08]} Rxd6 {[%emt 0:00:39]} 24. Rc8# {[%emt 0:00:03]} 1-0

[Event "Portuguese-ch U14-20 2022"]
[Site "Fatima"]
[Date "2022.04.13"]
[Round "6.10"]
[White "Pipiras, Filipa Fortuna"]
[Black "Simoes, Miguel Patricio"]
[Result "1-0"]
[ECO "E32"]
[WhiteElo "2000"]
[BlackElo "2001"]
[Annotator "TA"]
[PlyCount "69"]
[EventDate "2022.04.10"]
[EventType "swiss"]
[EventCountry "POR"]
[SourceTitle "playchess.com"]
[Source "ChessBase"]
[SourceQuality "1"]
[TimeControl "5400+30"]

{[%evp 21,68,105,98,73,71,70,117,108,115,97,245,255,351,351,354,362,408,410,372,351,470,460,553,517,774,560,584,576,741,715,695,698,704,675,969,916,1456,1333,1529,1479,1706,1702,1657,1624,2911,2375,29998,29999,29999]} 1. d4 {[%emt 0:08:35]} Nf6 {[%emt 0:00:08]} 2. c4 {[%emt 0:00:36]} e6 {[%emt 0:00:07]} 3. Nc3 {[%emt 0:00:30]} Bb4 {[%emt 0:00:30]} 4. Qc2 {[%emt 0:00:41]} O-O {[%emt 0:01:07]} 5. Nf3 {[%emt 0:01:31]} b6 {[%emt 0:06:44]} 6. e4 {[%emt 0:07:01]} Bb7 {[%emt 0:06:42]} 7. Bd3 {[%emt 0:01:03]} d5 {[%emt 0:04:46]} 8. cxd5 {[%emt 0:07:59]} exd5 {[%emt 0:00:25]} 9. e5 {[%emt 0:00:22]} Ne4 {[%emt 0:00:31]} 10. O-O {[%emt 0:02:51]} Bxc3 {[%emt 0:08:14]} 11. bxc3 {[%emt 0:01:34]} c5 {[%emt 0:10:00]} 12. Rd1 {[%emt 0:24:08] [#] E32: Nimzo-Indian: Classical (4 Qc2): 4...0-0.} Qc7 $146 {[%emt 0:14:07]} ({Predecessor:} 12... h6 13. Ne1 cxd4 14. cxd4 Na6 15. Ba3 Rc8 16. Qb2 Re8 17. f3 Ng5 18. Bb5 Re6 19. f4 Nh3+ 20. gxh3 Rg6+ 21. Ng2 Qh4 22. Bd3 {1-0 (22) Vanstreels,L (2071)-Bikady,C (1986) Skopje 2015}) 13. Bb2 {[%emt 0:16:13]} Nd7 {[%emt 0:05:29]} ({Black should play} 13... Nc6 $14) 14. Qe2 $16 {[%emt 0:04:50] White is better.} Rae8 {[%emt 0:06:36]} 15. Nd2 {[%emt 0:04:51]} f6 {[%emt 0:04:19]} (15... Nxd2 $16 16. Qxd2 (16. Rxd2 Nf6 $16) 16... Re7) 16. Nxe4 $18 {[%emt 0:02:46] [#] aiming for Nd6.} dxe4 {[%emt 0:03:31]} 17. Bc4+ {[%emt 0:01:27]} ({Inferior is} 17. Bxe4 Bxe4 18. Qxe4 fxe5 $11) 17... Kh8 {[%emt 0:00:03]} 18. e6 {[%emt 0:00:11]} Nb8 {[%emt 0:00:29]} 19. d5 {[%emt 0:00:35]} Qe5 {[%emt 0:00:40]} 20. Bb3 {[%emt 0:04:39]} Qd6 {[%emt 0:03:06]} 21. Qxe4 {[%emt 0:00:19]} f5 {[%emt 0:00:21]} 22. Qe2 {[%emt 0:00:24]} f4 {[%emt 0:00:19]} 23. f3 {[%emt 0:01:00]} c4 {[%emt 0:00:56]} 24. Qxc4 {[%emt 0:00:11]} Rf5 {[%emt 0:00:19]} 25. Qd4 {[%emt 0:00:45]} Na6 {[%emt 0:00:30]} 26. c4 {[%emt 0:00:17][%csl Gb2][%cal Rd4g7] [#]} Rg5 {[%emt 0:00:02]} 27. a4 {[%emt 0:02:22]} Qb4 {[%emt 0:00:23]} 28. Bc2 {[%emt 0:00:25] Threatens to win with Ba3.} Nc7 {[%emt 0:00:53]} 29. Ba3 {[%emt 0:00:29]} Qa5 {[%emt 0:00:10]} 30. Qxf4 {[%emt 0:00:15]} Qc3 {[%emt 0:01:33]} 31. Qxg5 {[%emt 0:00:59]} Qxc2 {[%emt 0:00:35]} 32. Qf4 {[%emt 0:00:11]} Rc8 {[%emt 0:00:35]} 33. e7 {[%emt 0:00:08] White threatens Qf8+ and mate.} Kg8 {[%emt 0:00:14]} 34. Qf8+ {[%emt 0:00:07]} Rxf8 {[%emt 0:00:06]} 35. exf8=Q# {[%emt 0:00:05] Black did not feel at home in the position after the opening.  Weighted Error Value: White=0.24 (precise) /Black=0.53} ({Weaker is} 35. exf8=B Qxc4 36. Rac1 Qxa4 $18) 1-0

[Event "Portuguese-ch U14-20 2022"]
[Site "Fatima"]
[Date "2022.04.13"]
[Round "6.11"]
[White "Sismeiro, Miguel"]
[Black "Vidal Torres, Ricardo"]
[Result "1/2-1/2"]
[ECO "A05"]
[WhiteElo "2201"]
[BlackElo "2332"]
[Annotator "TA"]
[PlyCount "75"]
[EventDate "2022.04.10"]
[EventType "swiss"]
[EventCountry "POR"]
[SourceTitle "playchess.com"]
[Source "ChessBase"]
[SourceQuality "1"]
[TimeControl "5400+30"]

{[%evp 10,75,11,0,0,0,4,4,26,0,-10,-8,0,0,0,0,0,0,18,8,16,10,19,0,0,0,0,0,0,0,6,0,17,0,0,0,0,0,-3,-2,0,0,0,0,0,0,0,0,0,0,0,0,0,0,0,-5,0,0,0,0,0,0,0,0,0,0,0,0]} 1. Nf3 {[%emt 0:00:10]} Nf6 2. c4 {[%emt 0:00:09]} e6 {[%emt 0:00:39]} 3. b3 {[%emt 0:00:13]} d5 {[%emt 0:00:17]} 4. e3 {[%emt 0:00:10]} Bd6 {[%emt 0:00:57]} 5. Bb2 {[%emt 0:00:29]} O-O {[%emt 0:00:30]} 6. Be2 {[%emt 0:01:05]} c6 {[%emt 0:02:45] A13: English Opening: 1...e6.} 7. O-O {[%emt 0:00:46]} Nbd7 {[%emt 0:02:01]} 8. d4 {[%emt 0:01:10]} Ne4 {[%emt 0:04:12] [#] 8...b6 is more fashionable.} 9. Ba3 $146 {[%emt 0:15:15]} (9. Qc2 {looks sharper.} f5 10. Ne5 Qg5 11. Nc3) ({Predecessor:} 9. Nbd2 f5 10. Ne5 Nxe5 11. dxe5 Bb4 12. Nxe4 fxe4 13. a3 Ba5 14. b4 Bc7 15. f4 exf3 16. Rxf3 Rxf3 17. Bxf3 {1-0 (45) Vachier Lagrave,M (2784)-Shirov,A (2662) Chess.com INT 2020}) 9... Bxa3 {[%emt 0:04:57] The position is equal.} 10. Nxa3 {[%emt 0:00:11]} Nc3 {[%emt 0:05:12]} 11. Qd2 {[%emt 0:01:21]} Nxe2+ {[%emt 0:00:31]} 12. Qxe2 {[%emt 0:00:03]} Qe7 {[%emt 0:02:50]} 13. Qb2 {[%emt 0:00:52]} Nf6 {[%emt 0:10:39]} 14. Rfc1 {[%emt 0:07:53]} Ne4 {[%emt 0:05:25]} 15. Nb1 {[%emt 0:01:43]} b6 {[%emt 0:12:12]} 16. cxd5 {[%emt 0:03:25]} cxd5 {[%emt 0:00:41]} 17. Nc3 {[%emt 0:03:36]} Nxc3 {[%emt 0:07:07]} 18. Rxc3 {[%emt 0:03:57]} Bb7 {[%emt 0:00:16]} 19. Rac1 {[%emt 0:06:54] [#] Rc7 is the strong threat.} Rfc8 {[%emt 0:00:13] Against Rc7} 20. b4 {[%emt 0:05:37]} Qd8 {[%emt 0:05:12]} 21. Ne5 {[%emt 0:02:03]} Rxc3 {[%emt 0:02:43]} 22. Rxc3 {[%emt 0:00:57]} Rc8 {[%emt 0:01:57]} 23. Qc2 {[%emt 0:03:23]} Rxc3 {[%emt 0:01:47]} 24. Qxc3 {[%emt 0:00:00]} Qc8 {[%emt 0:00:08]} 25. Qxc8+ {[%emt 0:02:28]} Bxc8 $11 {[%emt 0:00:13][%mdl 4096] Endgame KB-KN} 26. b5 {[%emt 0:05:44]} Kf8 {[%emt 0:09:43]} 27. Kf1 {[%emt 0:02:19]} a6 {[%emt 0:01:53]} 28. bxa6 {[%emt 0:00:51]} Bxa6+ {[%emt 0:00:12]} 29. Ke1 {[%emt 0:00:03]} Ke7 {[%emt 0:02:34] Prevents Nd7.} 30. Kd2 {[%emt 0:00:17]} f6 {[%emt 0:00:44]} 31. Nd3 {[%emt 0:00:06]} Kd6 {[%emt 0:01:44]} 32. Kc3 {[%emt 0:02:55]} Bxd3 {[%emt 0:01:39]} 33. Kxd3 {[%emt 0:00:05] [#] aiming for Kc3. KP-KP} Kc6 $1 {[%emt 0:00:02]} 34. Kc3 {[%emt 0:00:34]} Kb5 {[%emt 0:00:13] Threatens to win with ...Ka4.} 35. Kb3 {[%emt 0:00:25]} Ka5 {[%emt 0:00:16]} 36. Ka3 {[%emt 0:07:12]} Kb5 {[%emt 0:00:08] And now ...Kc4 would win.} 37. Kb3 {[%emt 0:00:04]} Ka5 {[%emt 0:00:08]} 38. Ka3 {[%emt 0:00:01] A rather calm draw.  Weighted Error Value: White=0.03 (flawless) /Black=0.03 (flawless)} 1/2-1/2

[Event "Portuguese-ch U14-20 2022"]
[Site "Fatima"]
[Date "2022.04.13"]
[Round "6.12"]
[White "Bastiao, Tomas"]
[Black "Ribeiro, Rodrigo"]
[Result "1/2-1/2"]
[ECO "A36"]
[WhiteElo "1664"]
[BlackElo "1866"]
[Annotator "NA RC"]
[PlyCount "89"]
[EventDate "2022.04.10"]
[EventType "swiss"]
[EventCountry "POR"]
[SourceTitle "playchess.com"]
[Source "ChessBase"]
[SourceQuality "1"]
[TimeControl "5400+30"]

1. c4 c5 2. Nc3 Nc6 3. g3 g6 4. Bg2 Bg7 5. e4 e6 6. Nge2 Nge7 7. O-O O-O 8. d3 f5 (8... d6 $11 {might be stronger.}) 9. Be3 b6 10. d4 cxd4 11. Nxd4 Bb7 12. Ndb5 Na5 13. Nd6 Bc6 14. f4 Nc8 15. Nxc8 Rxc8 16. Bd4 Bxd4+ 17. Qxd4 Bxe4 18. b3 Bxg2 19. Kxg2 Qf6 20. Qxf6 Rxf6 21. Nb5 (21. Rf3 $1 $11) 21... Nc6 22. Rad1 Rd8 23. Nd6 Nb8 24. b4 Kf8 {[#]} (24... Na6 $11 {keeps the balance.}) 25. b5 $1 Ke7 {[#]} 26. Rf2 (26. Rf3 $1 $16) 26... h6 27. Rc2 g5 28. c5 gxf4 $2 (28... bxc5 $1 $11 {and Black stays safe.} 29. fxg5 (29. Rxc5 gxf4 30. Nc8+ Kf7 $11) 29... hxg5) 29. c6 ({Stronger than} 29. gxf4 Rg6+ 30. Kf3 bxc5 $11) (29. cxb6 $18 {is the precise move to win.} axb6 30. Nc8+ (30. gxf4 Rg6+ 31. Kf3 Rg4 $16) 30... Kf7 31. gxf4 (31. Nxb6 fxg3 32. hxg3 Rg6 $14)) 29... dxc6 {[#]} 30. bxc6 $1 Rxd6 $16 31. c7 Rf8 32. Rxd6 Kxd6 33. c8=Q Rxc8 34. Rxc8 Nc6 35. gxf4 Nb4 36. a3 Nd5 37. Kf3 a5 38. a4 Kd7 39. Rh8 Nc3 40. Rxh6 Nxa4 41. Rg6 Nc3 42. h4 Ke7 43. Rg7+ Kf8 44. Rc7 Nd5 45. Ra7 1/2-1/2

[Event "Portuguese-ch U14-20 2022"]
[Site "Fatima"]
[Date "2022.04.13"]
[Round "6.13"]
[White "Gomes, Estevao Manuel"]
[Black "Gama, Joao Tiago"]
[Result "1-0"]
[ECO "C09"]
[WhiteElo "2047"]
[BlackElo "1637"]
[Annotator "TA"]
[PlyCount "57"]
[EventDate "2022.04.10"]
[EventType "swiss"]
[EventCountry "POR"]
[SourceTitle "playchess.com"]
[Source "ChessBase"]
[SourceQuality "1"]
[TimeControl "5400+30"]

{[%evp 13,56,36,33,12,50,0,106,118,98,110,91,102,97,106,93,33,198,179,188,190,176,193,302,310,685,671,746,740,904,893,1130,1129,1106,1088,29982,29983,29983,29983,29979,2229,29996,29997,29997,29998,29999]} 1. e4 {[%emt 0:00:01]} e6 {[%emt 0:04:54]} 2. d4 {[%emt 0:00:14]} d5 {[%emt 0:00:06]} 3. Nd2 {[%emt 0:00:35]} c5 {[%emt 0:00:06]} 4. exd5 {[%emt 0:01:40]} exd5 {[%emt 0:00:04]} 5. Ngf3 {[%emt 0:00:31]} Nc6 {[%emt 0:00:08]} 6. Bb5 {[%emt 0:01:37]} Bd6 {[%emt 0:00:09] 6...Qe7+ is more advanced technology.} 7. O-O {[%emt 0:00:28]} Nge7 {[%emt 0:00:05]} 8. c4 {[%emt 0:08:12] [#] C09: French Tarrasch: 3...c5 4 exd5 exd5 5 Ngf3 Nc6.} Be6 $146 {[%emt 0:06:57]} ({Predecessor:} 8... O-O 9. cxd5 Nxd5 10. Ne4 Nxd4 11. Nxd4 cxd4 12. Nxd6 Qxd6 13. Qxd4 Be6 14. Bc4 Rfd8 15. Bg5 f6 16. Bxd5 {½-½ (16) Mahjoob,M (2455)-Andersson,U (2580) Mallorca 2004}) 9. Ng5 {[%emt 0:10:14]} (9. dxc5 $14 Bxc5 10. Nb3) 9... Qc7 {[%emt 0:03:55]} (9... O-O $11 {keeps the balance.}) 10. Nxe6 $16 {[%emt 0:00:58] White is better.} fxe6 {[%emt 0:02:00] [#]} 11. Qh5+ $1 {[%emt 0:09:50]} g6 {[%emt 0:00:16]} 12. Qh3 {[%emt 0:00:08]} Nf5 {[%emt 0:06:47]} 13. cxd5 {[%emt 0:02:47]} exd5 {[%emt 0:00:19]} 14. Re1+ {[%emt 0:00:56]} (14. dxc5 $16 Bxc5 15. Nb3) 14... Kf7 $2 {[%emt 0:02:06] This costs Black the game.} (14... Be7 $1 $14) 15. dxc5 $18 {[%emt 0:02:25]} Bxc5 {[%emt 0:00:10]} 16. Bxc6 {[%emt 0:00:32]} bxc6 {[%emt 0:00:53]} 17. Nf3 {[%emt 0:00:07][%cal Bd2f3,Bf3g5,Bg5e6][%mdl 32]} Kg7 {[%emt 0:01:18]} (17... Kg8 {is a better defense.} 18. Bg5 Qb6) 18. b4 {[%emt 0:02:50]} ({Don't take} 18. g4 $6 Nd4 $18) 18... Be7 $2 {[%emt 0:02:03]} (18... Bxb4 19. g4 Nd6) 19. Bb2+ {[%emt 0:02:14]} Bf6 {[%emt 0:00:22]} 20. Ng5 {[%emt 0:01:19] Strongly threatening Ne6+.} Qd7 {[%emt 0:01:50]} 21. Ne6+ {[%emt 0:05:04]} Kf7 {[%emt 0:03:08]} 22. Bxf6 {[%emt 0:00:55]} Kxf6 {[%emt 0:01:03]} 23. g4 {[%emt 0:02:38]} Ne7 {[%emt 0:03:21]} 24. Qf3+ {[%emt 0:00:20]} Nf5 {[%emt 0:00:08]} 25. gxf5 {[%emt 0:00:17]} gxf5 {[%emt 0:00:06]} 26. Qc3+ {[%emt 0:00:20]} (26. Qf4 $142 Rag8+ 27. Kh1 Rg4 28. Qe5+ Kg6 29. f3 Qe7 30. fxg4 Qf6 31. gxf5+ Kf7 32. Qc7+ Qe7 {[#]} 33. Nd8+ $1 {[%mdl 512]} Kf6 34. Qxe7+ Kxf5 35. Rg1 h6 36. Raf1#) 26... Kf7 {[%emt 0:00:13]} 27. Qg7+ {[%emt 0:00:08] White mates.} Ke8 {[%emt 0:00:08]} 28. Nc5+ {[%emt 0:00:21]} Qe7 {[%emt 0:00:12]} 29. Qxe7# {Weighted Error Value: White=0.09 (flawless) /Black=1.55} 1-0

[Event "Portuguese-ch U14-20 2022"]
[Site "Fatima"]
[Date "2022.04.13"]
[Round "6.14"]
[White "Sousa, Ricardo Miguel Morai"]
[Black "Pina, Tiago"]
[Result "1/2-1/2"]
[ECO "A46"]
[WhiteElo "2077"]
[BlackElo "1938"]
[Annotator "TA"]
[PlyCount "50"]
[EventDate "2022.04.10"]
[EventType "swiss"]
[EventCountry "POR"]
[SourceTitle "playchess.com"]
[Source "ChessBase"]
[SourceQuality "1"]
[TimeControl "5400+30"]

{[%evp 21,50,6,15,10,17,6,22,9,12,2,31,13,16,18,35,3,2,0,0,0,12,8,14,16,9,8,25,18,22,0,25]} 1. d4 {[%emt 0:00:06]} Nf6 {[%emt 0:00:08]} 2. Nf3 {[%emt 0:00:06]} c5 {[%emt 0:00:06]} 3. c3 {[%emt 0:01:56]} g6 {[%emt 0:00:17]} 4. Bf4 {[%emt 0:00:11]} Bg7 {[%emt 0:00:17]} 5. e3 b6 {[%emt 0:00:16]} 6. Be2 {[%emt 0:00:18]} Bb7 {[%emt 0:00:06]} 7. O-O {[%emt 0:00:05]} O-O {[%emt 0:00:10]} 8. Nbd2 {[%emt 0:00:30]} d6 {[%emt 0:00:17]} 9. h3 {[%emt 0:00:05]} Nbd7 {[%emt 0:00:32]} 10. Bh2 {[%emt 0:00:16]} Re8 {[%emt 0:00:37]} 11. a4 {[%emt 0:01:07]} a6 {[%emt 0:00:18]} 12. Qb3 {[%emt 0:06:20] A48: 1 d4 Nf6 2 Nf3 g6: Torre, London and Colle Systems.} d5 {[%emt 0:11:36]} 13. Rfd1 {[%emt 0:07:54] [#]} c4 $146 {[%emt 0:04:04]} ({Predecessor:} 13... e6 14. Rac1 Qe7 15. c4 Rac8 16. a5 b5 17. cxb5 c4 18. Qa4 axb5 19. Qxb5 Bc6 {1-0 (42) Schatz,C-Eckstein,B Bad Neustadt 1992}) 14. Qc2 {[%emt 0:00:16]} b5 {[%emt 0:00:57]} 15. Ne5 {[%emt 0:06:09]} Nb6 {[%emt 0:05:09]} 16. axb5 {[%emt 0:04:23]} axb5 {[%emt 0:00:02]} 17. b3 {[%emt 0:02:17]} Nfd7 {[%emt 0:09:29]} 18. Nxd7 {[%emt 0:08:31]} Qxd7 {[%emt 0:00:57]} 19. bxc4 {[%emt 0:00:56]} Nxc4 {[%emt 0:06:04]} 20. Nb3 {[%emt 0:14:02]} Rxa1 21. Rxa1 Ra8 {[%emt 0:07:50]} 22. Rxa8+ {[%emt 0:01:41]} Bxa8 {[%emt 0:00:11]} 23. Qa2 {[%emt 0:01:49]} Qc6 {[%emt 0:02:33]} 24. Qa7 {[%emt 0:05:07] Black must now prevent Qb8+.} Qb7 {[%emt 0:00:46]} 25. Qa2 {[%emt 0:07:38]} Bf8 {[%emt 0:01:58] An interesting draw.  Weighted Error Value: White=0.09 (flawless) /Black=0.07 (flawless)} 1/2-1/2

[Event "Portuguese-ch U14-20 2022"]
[Site "Fatima"]
[Date "2022.04.13"]
[Round "6.15"]
[White "Medeiros, Joao"]
[Black "Abdurramane, Danial Germano"]
[Result "0-1"]
[ECO "C00"]
[WhiteElo "1331"]
[BlackElo "1772"]
[Annotator "NA RC"]
[PlyCount "92"]
[EventDate "2022.04.10"]
[EventType "swiss"]
[EventCountry "POR"]
[SourceTitle "playchess.com"]
[Source "ChessBase"]
[SourceQuality "1"]
[TimeControl "5400+30"]

1. e4 {[%emt 0:00:01]} e6 {[%emt 0:00:25]} 2. c4 {[%emt 0:00:06]} d5 {[%emt 0:02:32]} 3. cxd5 {[%emt 0:00:08]} exd5 {[%emt 0:00:03]} 4. exd5 {[%emt 0:00:11]} Qxd5 {[%emt 0:00:05]} 5. d4 {[%emt 0:00:31]} c5 {[%emt 0:01:33]} 6. Be3 {[%emt 0:10:04]} cxd4 {[%emt 0:04:34]} 7. Qxd4 {[%emt 0:02:01]} Qxd4 {[%emt 0:01:58]} 8. Bxd4 {[%emt 0:00:07]} Nc6 {[%emt 0:00:12]} 9. Bc3 {[%emt 0:01:03]} Bf5 {[%emt 0:01:05]} 10. Nf3 {[%emt 0:03:55]} O-O-O {[%emt 0:00:46]} 11. Bc4 {[%emt 0:02:15]} f6 {[%emt 0:01:27]} 12. O-O {[%emt 0:01:34]} Bc5 {[%emt 0:00:50]} 13. Nbd2 {[%emt 0:03:41]} Nge7 {[%emt 0:02:24]} 14. Rfe1 {[%emt 0:02:31]} Nd5 {[%emt 0:01:02]} 15. Bxd5 {[%emt 0:03:55]} Rxd5 {[%emt 0:00:17]} 16. Nb3 {[%emt 0:04:54]} Bb6 {[%emt 0:02:52]} 17. Rad1 {[%emt 0:21:15]} Rxd1 {[%emt 0:05:47]} 18. Rxd1 {[%emt 0:00:14]} Bc2 {[%emt 0:00:14]} 19. Rd2 {[%emt 0:00:57]} Bxb3 {[%emt 0:00:23]} 20. axb3 {[%emt 0:00:05]} Re8 {[%emt 0:03:53]} 21. g3 {[%emt 0:03:17]} Na5 {[%emt 0:01:46]} 22. b4 {[%emt 0:03:16]} Nc4 {[%emt 0:03:44]} 23. Rc2 {[%emt 0:00:57]} Kd7 {[%emt 0:00:30]} 24. Bxf6 {[%emt 0:04:36]} gxf6 {[%emt 0:00:16]} 25. Rxc4 {[%emt 0:00:03]} Re2 {[%emt 0:00:15]} 26. Kh1 {[%emt 0:16:39]} Rxf2 {[%emt 0:00:59]} 27. Nd4 {[%emt 0:00:43]} Rxb2 {[%emt 0:00:59]} 28. Nf5 {[%emt 0:00:39]} Ke6 {[%emt 0:02:02]} 29. Ng7+ {[%emt 0:01:41]} Kd5 {[%emt 0:02:20]} 30. Rh4 {[%emt 0:01:09]} Bd4 {[%emt 0:00:52]} 31. Nf5 {[%emt 0:03:57]} Rxb4 {[%emt 0:02:28]} 32. Rxh7 {[%emt 0:06:34]} Be5 {[%emt 0:11:24]} 33. Ne3+ {[%emt 0:02:14]} Ke6 {[%emt 0:01:21]} 34. Kg2 {[%emt 0:00:27]} a5 {[%emt 0:00:20]} 35. Rh8 {[%emt 0:00:16]} a4 {[%emt 0:00:54]} 36. Ra8 {[%emt 0:00:09]} Rb3 {[%emt 0:00:50]} 37. Nc4 {[%emt 0:00:29]} b5 {[%emt 0:00:21]} 38. Nxe5 {[%emt 0:00:51]} Kxe5 {[%emt 0:00:17]} 39. h4 {[%emt 0:00:11]} Kf5 {[%emt 0:00:58]} 40. Kf2 {[%emt 0:01:32]} a3 {[%emt 0:01:49]} 41. Ra5 {[%emt 0:00:33]} Kg4 {[%emt 0:00:46]} 42. Ke2 {[%emt 0:00:49]} Rxg3 {[%emt 0:01:35]} 43. Rxb5 {[%emt 0:00:26]} Kxh4 {[%emt 0:00:16]} 44. Ra5 {[%emt 0:00:17]} f5 {[%emt 0:08:19]} 45. Rxf5 {[%emt 0:00:13]} a2 {[%emt 0:00:05]} 46. Ra5 {[%emt 0:00:11]} Rg1 {[%emt 0:00:04]} 0-1

[Event "Portuguese-ch U14-20 2022"]
[Site "Fatima"]
[Date "2022.04.13"]
[Round "6.16"]
[White "Goncalves, Samuel Jesus P"]
[Black "Soares, Luis Francisco Almei"]
[Result "1-0"]
[ECO "A06"]
[WhiteElo "1807"]
[BlackElo "2000"]
[Annotator "TA"]
[PlyCount "59"]
[EventDate "2022.04.10"]
[EventType "swiss"]
[EventCountry "POR"]
[SourceTitle "playchess.com"]
[Source "ChessBase"]
[SourceQuality "1"]
[TimeControl "5400+30"]

{[%evp 9,59,-6,7,-16,0,0,0,0,0,0,13,2,16,9,34,12,35,27,17,8,72,73,91,81,67,62,60,49,124,55,49,11,29,23,66,52,165,181,178,123,122,113,108,93,147,138,218,226,514,511,752,672]} 1. h3 d5 2. Nf3 Nf6 3. e3 e6 4. b3 c5 5. d4 Nc6 6. Be2 {A06: Réti Opening: 1 Nf3 d5.} Be7 7. Bb2 {[#]} cxd4 $146 ({Predecessor:} 7... O-O 8. O-O b6 9. Nbd2 Bb7 10. Ne5 Qc7 11. f4 a6 12. a3 b5 13. c3 c4 {½-½ (54) Petrovic,P (2193)-Maksimovic,M (2167) Belgrade 2003}) 8. Nxd4 {The position is equal.} O-O 9. O-O Ne4 10. Nd2 Nxd2 11. Qxd2 Bf6 12. Rac1 e5 13. Nxc6 bxc6 14. Rfd1 Qd6 (14... Qb6 $11 {remains equal.}) 15. c4 $16 {[%cal Rc4d5]} Rd8 16. Qa5 Be6 17. Ba3 {&Bianco is more active.} Qb8 18. Qa4 $36 {[%mdl 2048] White is more active.} Qb6 (18... Bd7 $14) 19. Bb4 (19. cxd5 $16 cxd5 20. Bc5) 19... a5 20. Be1 (20. Bc5 $5 {[%cal Rc5b6]} Qb7 21. Bd3 $11) 20... d4 21. Bf3 Ra6 22. c5 Qb5 (22... Qb7 $14) 23. Qxb5 $18 cxb5 {[#]} 24. c6 ({White should try} 24. Be2 $1 $18) 24... Rc8 $16 25. Rc5 b4 26. Rdc1 g6 (26... h6 $142) 27. Bd2 {Strongly threatening Rb5.} dxe3 (27... a4 $16) 28. Bxe3 $18 {[#] And now c7 would win.} Bg7 $2 (28... Be7) 29. c7 {Black must now prevent Bb7.} Ra7 {Against Bb7} 30. R5c2 {Weighted Error Value: White=0.12 (very precise) /Black=0.40} 1-0

[Event "Portuguese-ch U14-20 2022"]
[Site "Fatima"]
[Date "2022.04.13"]
[Round "6.17"]
[White "Rodrigues, Jose Pedro Da Costa"]
[Black "Fonseca, Pedro Miguel Ramos"]
[Result "0-1"]
[ECO "E80"]
[WhiteElo "1533"]
[BlackElo "1788"]
[Annotator "NA RC"]
[PlyCount "42"]
[EventDate "2022.04.10"]
[EventType "swiss"]
[EventCountry "POR"]
[SourceTitle "playchess.com"]
[Source "ChessBase"]
[SourceQuality "1"]
[TimeControl "5400+30"]

1. d4 {[%emt 0:00:04]} Nf6 {[%emt 0:00:15]} 2. c4 {[%emt 0:00:11]} g6 {[%emt 0:00:22]} 3. Nc3 {[%emt 0:00:16]} Bg7 {[%emt 0:00:08]} 4. e4 {[%emt 0:00:16]} d6 {[%emt 0:00:10]} 5. f3 {[%emt 0:00:17]} Nbd7 {[%emt 0:02:11]} 6. Be3 {[%emt 0:00:47]} c5 {[%emt 0:02:42]} 7. Nge2 {[%emt 0:02:14]} Nb6 {[%emt 0:02:24]} 8. Nc1 {[%emt 0:04:49]} cxd4 {[%emt 0:03:28]} 9. Bxd4 {[%emt 0:00:22]} Be6 {[%emt 0:00:49]} 10. Nd5 {[%emt 0:12:56]} O-O {[%emt 0:02:59]} 11. Nxb6 {[%emt 0:04:07]} axb6 {[%emt 0:00:06]} 12. b3 {[%emt 0:08:11]} b5 {[%emt 0:07:06]} 13. cxb5 {[%emt 0:03:24]} Qa5+ {[%emt 0:00:54]} 14. Kf2 {[%emt 0:03:13]} Qb4 {[%emt 0:01:46]} 15. Bc4 {[%emt 0:14:26]} Bxc4 {[%emt 0:00:43]} 16. bxc4 {[%emt 0:00:08]} Qxc4 {[%emt 0:00:58]} 17. Ne2 {[%emt 0:00:27]} Rxa2 {[%emt 0:00:49]} 18. Rb1 {[%emt 0:05:55]} Nxe4+ {[%emt 0:01:35]} 19. Ke1 {[%emt 0:01:25]} Bxd4 {[%emt 0:01:06]} 20. fxe4 {[%emt 0:02:46]} Be3 {[%emt 0:00:25]} 21. Ng3 {[%emt 0:04:19]} Bf2# {[%emt 0:00:16]} 0-1